[Event "45th FIDE Olympiad 2024"]
[Site "Budapest"]
[Date "2024.09.13"]
[Round "3.42"]
[White "Erfan, Mohamad Firdaus"]
[Black "Ayyad, Maher"]
[Result "1/2-1/2"]
[ECO "D36"]
[WhiteElo "1758"]
[BlackElo "1980"]
[Annotator "NA RC"]
[PlyCount "64"]
[EventDate "2024.09.05"]
[EventType "team-tourn"]
[EventCountry "HUN"]
[SourceTitle "playchess.com"]
[Source "ChessBase"]
[SourceQuality "1"]
[WhiteTeam "Qatar"]
[BlackTeam "Bahrain"]
[WhiteTeamCountry "QAT"]
[BlackTeamCountry "BHN"]
[TimeControl "40/5400+30:1800+30"]

1. d4 d5 2. c4 e6 3. Nc3 Nf6 4. cxd5 exd5 5. Bg5 Nbd7 6. e3 c6 7. Bd3 Be7 8. Nf3 O-O 9. Qc2 Re8 10. O-O Nf8 11. h3 Ne4 12. Bf4 Ng5 13. Bxg5 Bxg5 14. b4 Be7 15. Rab1 Bd6 16. b5 Qf6 17. bxc6 bxc6 18. e4 Bxh3 19. e5 Qf4 20. exd6 Qg4 21. Nh4 Qxh4 22. gxh3 Qxh3 23. Bf5 Qh4 24. d7 Qg5+ 25. Kh2 Qf4+ 26. Kg2 Qg5+ 27. Kh2 Red8 28. Rb7 Qf4+ 29. Kg2 Qg5+ 30. Kh2 Qf4+ 31. Kg2 Qg5+ 32. Kh2 Qf4+ 1/2-1/2

[Event "45th FIDE Olympiad 2024"]
[Site "Budapest"]
[Date "2024.09.13"]
[Round "3.43"]
[White "Mamedyarov, Shakhriyar"]
[Black "Lashkin, Jegor"]
[Result "1-0"]
[ECO "A28"]
[WhiteElo "2733"]
[BlackElo "2472"]
[Annotator "TA"]
[PlyCount "80"]
[EventDate "2024.09.05"]
[EventType "team-tourn"]
[EventCountry "HUN"]
[SourceTitle "playchess.com"]
[Source "ChessBase"]
[SourceQuality "1"]
[WhiteTeam "Azerbaijan"]
[BlackTeam "Moldova"]
[WhiteTeamCountry "AZE"]
[BlackTeamCountry "MDA"]
[TimeControl "40/5400+30:1800+30"]

{[%evp 13,80,0,0,11,46,52,36,38,45,0,83,77,82,67,81,87,109,67,64,72,84,70,71,60,134,127,147,145,157,146,140,143,129,142,116,139,114,119,134,116,129,139,197,87,57,67,176,180,153,141,1225,1131,1552,1459,1972,1491,1827,1496,6125,29960,29964,29966,29977,29978,29978,29978,29986,29987,29987]} 1. c4 {[%emt 0:00:03]} e5 {[%emt 0:00:18]} 2. Nc3 {[%emt 0:00:07]} Nf6 {[%emt 0:00:10]} 3. Nf3 {[%emt 0:00:06]} Nc6 {[%emt 0:00:05]} 4. a3 {[%emt 0:00:06]} d5 {[%emt 0:01:41]} 5. cxd5 {[%emt 0:00:43]} Nxd5 {[%emt 0:00:03]} 6. Qc2 {[%emt 0:00:58]} Be7 {[%emt 0:06:57]} 7. e3 {[%emt 0:00:31]} O-O {[%emt 0:05:43]} 8. Bd3 {[%emt 0:12:52]} g6 {[%emt 0:08:53]} 9. Nxd5 {[%emt 0:02:20]} Qxd5 {[%emt 0:00:10]} 10. b4 {[%emt 0:03:23] White is slightly better.} Be6 {[%emt 0:07:08]} 11. Bb2 {[%emt 0:10:28]} Rfd8 {[%emt 0:24:28]} (11... f5 $11 12. Be2 e4) 12. Be4 $16 {[%emt 0:00:58]} Qb5 {[%emt 0:01:10]} 13. h4 {[%emt 0:04:08][%cal Bh2h4,Bh4h5][%mdl 32]} Bf6 {[%emt 0:14:11]} 14. h5 {[%emt 0:03:29][%cal Rh5g6]} Kg7 {[%emt 0:09:43]} 15. Rb1 {[%emt 0:09:07]} a5 {[%emt 0:06:31]} 16. bxa5 {[%emt 0:13:54]} Ba2 {[%emt 0:02:25]} 17. Rc1 {[%emt 0:00:57]} Bd5 {[%emt 0:01:01] Threatens to win with ...Bxe4.} 18. Bc3 $1 {[%emt 0:06:48][%cal Bb2c3,Bc3d4,Bd4c5][%mdl 32]} Nd4 {[%emt 0:01:31]} 19. exd4 {[%emt 0:00:28]} Bxe4 {[%emt 0:00:11]} 20. Qxe4 {[%emt 0:00:08]} exd4 {[%emt 0:00:05]} 21. Nxd4 {[%emt 0:00:20]} Rxd4 {[%emt 0:00:35]} 22. Bxd4 {[%emt 0:00:08]} Re8 {[%emt 0:00:03]} 23. h6+ {[%emt 0:00:21]} (23. Bxf6+ Kxf6 $18) 23... Kf8 {[%emt 0:02:17]} 24. Bc5+ $1 {[%emt 0:00:04]} Kg8 {[%emt 0:00:09] [#]} 25. Qxe8+ {[%emt 0:00:12]} (25. Be7 $2 Rxe7 $19 (25... Bxe7 26. Kd1 $16) (25... Bxe7 26. Kd1 $16)) 25... Qxe8+ {[%emt 0:00:02]} 26. Be3 {[%emt 0:00:08]} Be5 {[%emt 0:02:56]} 27. O-O {[%emt 0:01:25]} Qa4 {[%emt 0:01:01] [#]} (27... f6 $16) 28. Rfe1 {[%emt 0:04:24]} (28. Rb1 $1 $18 {[%cal Rb1b7] has better winning chances.} Qxa5 29. Rxb7) 28... f6 {[%emt 0:00:56]} 29. Bc5 $1 {[%emt 0:07:27][%cal Od2d4] d4! is the strong threat.} g5 {[%emt 0:03:09] [#]} (29... Qf4 $1 $14) 30. d4 $1 $18 {[%emt 0:02:06]} Bf4 {[%emt 0:00:01]} 31. Rb1 {[%emt 0:00:07]} Qc6 {[%emt 0:01:52][%mdl 8192] Loses the game.} (31... Kf7 $16) 32. Re7 {[%emt 0:03:07] Rg7+ would now be deadly.} g4 {[%emt 0:00:07] [#]} 33. a6 $1 {[%emt 0:03:40]} Qxa6 {[%emt 0:00:36]} (33... b6 34. a7) 34. Rg7+ {[%emt 0:00:19]} Kh8 {[%emt 0:00:00]} 35. Re1 {[%emt 0:00:08]} ({Weaker is} 35. Rxg4 Bxh6 36. Rg3 Bf4 $16) 35... Qa4 {[%emt 0:01:05] Prevents Re8+} 36. g3 {[%emt 0:00:45]} ({Not} 36. Rxg4 Bxh6 37. Bb4 b6 $16) 36... Bxh6 {[%emt 0:00:33] White mates.} 37. Rxc7 {[%emt 0:00:12]} ({Inferior is} 37. Rxg4 f5 38. Rh4 Bg5 $11) 37... Qa8 {[%emt 0:00:38]} 38. d5 {[%emt 0:00:37][%cal Bd4d5,Bd5d6][%mdl 32]} Qd8 {[%emt 0:00:33]} 39. d6 {[%emt 0:01:10]} Bf8 {[%emt 0:00:19]} 40. Rxb7 {[%emt 0:00:09]} Kg8 {[%emt 0:00:41] Weighted Error Value: White=0.09 (flawless) /Black=0.19 (very precise) .  Loses game:     	---       	Black=1      Mistake:       	White=1     	Black=4      Inaccurate:     	White=2     	Black=2      OK:         	White=11    	Black=8      Best:        	White=3     	Black=4      Strong:       	White=3     	---        Brilliant:      	White=1     	---} 1-0

[Event "45th FIDE Olympiad 2024"]
[Site "Budapest"]
[Date "2024.09.13"]
[Round "3.43"]
[White "Mosa, Hamad"]
[Black "Al Qassabi, Mohammed"]
[Result "0-1"]
[ECO "C77"]
[WhiteElo "1721"]
[BlackElo "1521"]
[Annotator "NA"]
[PlyCount "160"]
[EventDate "2024.09.05"]
[EventType "team-tourn"]
[EventCountry "HUN"]
[SourceTitle "playchess.com"]
[Source "ChessBase"]
[SourceQuality "1"]
[WhiteTeam "Bahrain"]
[BlackTeam "Qatar"]
[WhiteTeamCountry "BHN"]
[BlackTeamCountry "QAT"]
[TimeControl "40/5400+30:1800+30"]

1. e4 e5 2. Nf3 Nc6 3. Bb5 a6 4. Ba4 Nf6 5. d3 b5 6. Bb3 Be7 7. c3 d6 8. Nbd2 O-O 9. O-O Na5 10. Bc2 c5 11. d4 Qc7 12. d5 c4 13. a4 Bd7 14. Re1 Nb7 15. Nf1 Nc5 16. axb5 axb5 17. Bg5 Bg4 18. Bxf6 Bxf6 19. Ne3 Rxa1 20. Qxa1 Bxf3 21. gxf3 Qd7 22. Qa5 Rb8 23. Kf1 Bd8 24. Qa2 Qh3+ 25. Ke2 Qxh2 26. Qa7 Rb7 27. Qa8 Qh4 28. Nf5 Qf6 29. Ra1 g6 30. Ne3 Kg7 31. Ra6 Qe7 32. Rc6 Ra7 33. Qb8 Rb7 34. Qxd6 Qxd6 35. Rxd6 Rd7 36. Rc6 Rc7 37. Ng4 Rxc6 38. dxc6 f6 39. Ne3 Na6 40. f4 exf4 41. Nd5 Bc7 42. Kf3 g5 43. Kg4 Be5 44. Kf5 h5 45. f3 h4 46. Kg4 Nc7 47. Nb6 Bd6 48. b3 cxb3 49. Bxb3 b4 50. cxb4 Bxb4 51. Nd5 Nxd5 52. Bxd5 Bd6 53. Be6 Kf8 54. Kh5 Ke7 55. Bf5 Be5 56. Kg4 Kd6 57. Bd7 Kc5 58. Kh5 Kd4 59. Kg6 Ke3 60. Bg4 Kf2 61. c7 Bxc7 62. Kxf6 Kg3 63. e5 h3 64. Bxh3 Kxh3 65. e6 Bd6 66. Kxg5 Kg3 67. Kf6 Kxf3 68. e7 Bxe7+ 69. Kxe7 Kg4 70. Kd6 f3 71. Kc5 f2 72. Kb4 f1=Q 73. Kb3 Qc1 74. Ka2 Qc3 75. Kb1 Qd2 76. Ka1 Kf3 77. Kb1 Ke4 78. Ka1 Kd3 79. Kb1 Kc3 80. Ka1 Qb2# 0-1

[Event "45th FIDE Olympiad 2024"]
[Site "Budapest"]
[Date "2024.09.13"]
[Round "3.44"]
[White "Bologan, Victor"]
[Black "Muradli, Mahammad"]
[Result "1/2-1/2"]
[ECO "B52"]
[WhiteElo "2598"]
[BlackElo "2576"]
[Annotator "RC"]
[PlyCount "84"]
[EventDate "2024.09.05"]
[EventType "team-tourn"]
[EventCountry "HUN"]
[SourceTitle "playchess.com"]
[Source "ChessBase"]
[SourceQuality "1"]
[WhiteTeam "Moldova"]
[BlackTeam "Azerbaijan"]
[WhiteTeamCountry "MDA"]
[BlackTeamCountry "AZE"]
[TimeControl "40/5400+30:1800+30"]

1. e4 {[%emt 0:00:01]} c5 {[%emt 0:00:36]} 2. Nf3 {[%emt 0:00:05]} d6 {[%emt 0:00:13]} 3. Bb5+ {[%emt 0:00:04]} Bd7 {[%emt 0:00:10]} 4. c4 {[%emt 0:00:05]} Nf6 {[%emt 0:00:16]} 5. Nc3 {[%emt 0:00:08]} g6 {[%emt 0:00:17]} 6. Bxd7+ {[%emt 0:00:31]} Qxd7 {[%emt 0:00:28]} 7. d4 {[%emt 0:00:06]} cxd4 {[%emt 0:00:26]} 8. Qxd4 {[%emt 0:00:08]} Bg7 {[%emt 0:05:10]} 9. O-O {[%emt 0:03:13]} Nc6 {[%emt 0:04:58]} 10. Qd3 {[%emt 0:00:18]} Ng4 {[%emt 0:00:48]} 11. Bd2 {[%emt 0:10:48]} Nge5 {[%emt 0:16:34]} 12. Nxe5 {[%emt 0:04:20]} dxe5 {[%emt 0:00:11]} 13. Qxd7+ {[%emt 0:00:34]} Kxd7 {[%emt 0:00:05]} 14. Rad1 {[%emt 0:00:30]} Nd4 {[%emt 0:00:47]} 15. f4 {[%emt 0:13:52]} Rhc8 {[%emt 0:05:04]} 16. b3 {[%emt 0:02:18]} exf4 {[%emt 0:13:25]} 17. Bxf4 {[%emt 0:02:30]} Ke8 {[%emt 0:00:14]} 18. e5 {[%emt 0:01:53]} Ne6 {[%emt 0:08:36]} 19. Bg3 {[%emt 0:00:45]} Rc5 {[%emt 0:00:51]} 20. Nd5 {[%emt 0:08:39]} Rac8 {[%emt 0:02:47]} 21. a4 {[%emt 0:05:45]} R5c6 {[%emt 0:05:59]} 22. Rd3 {[%emt 0:02:51]} Nd8 {[%emt 0:04:57]} 23. Rfd1 {[%emt 0:10:25]} Ne6 {[%emt 0:00:33]} 24. Bh4 {[%emt 0:07:01]} g5 {[%emt 0:04:45]} 25. Bg3 {[%emt 0:00:06]} h6 {[%emt 0:08:47]} 26. Rf1 {[%emt 0:02:27]} Nd8 {[%emt 0:01:31]} 27. h4 {[%emt 0:02:25]} Re6 {[%emt 0:01:49]} 28. hxg5 {[%emt 0:01:25]} hxg5 {[%emt 0:00:02]} 29. Rf5 {[%emt 0:02:37]} Rg6 {[%emt 0:00:53]} 30. Nc3 {[%emt 0:03:17]} Nc6 {[%emt 0:03:42]} 31. Ne4 {[%emt 0:00:11]} g4 {[%emt 0:00:53]} 32. a5 {[%emt 0:14:22]} Rd8 {[%emt 0:07:01]} 33. Rxd8+ {[%emt 0:00:05]} Nxd8 {[%emt 0:00:05]} 34. Nc5 {[%emt 0:00:51]} Bh6 {[%emt 0:01:51]} 35. Kf2 {[%emt 0:00:53]} Rc6 {[%emt 0:01:08]} 36. Nd3 {[%emt 0:01:57]} Ne6 {[%emt 0:01:52]} 37. Rh5 {[%emt 0:00:36]} Bd2 {[%emt 0:00:03]} 38. Rh8+ {[%emt 0:00:29]} Kd7 {[%emt 0:00:02]} 39. Rb8 {[%emt 0:00:39]} Kc7 {[%emt 0:01:29]} 40. Re8 {[%emt 0:00:07]} Kd7 {[%emt 0:00:31]} 41. Rb8 {[%emt 0:30:12]} Kc7 {[%emt 0:08:49]} 42. Rg8 {[%emt 0:00:00]} Kd7 {[%emt 0:03:14]} 1/2-1/2

[Event "45th FIDE Olympiad 2024"]
[Site "Budapest"]
[Date "2024.09.13"]
[Round "3.44"]
[White "Al-Kuwari, Turki"]
[Black "Shaker, Musab"]
[Result "1-0"]
[ECO "C42"]
[WhiteElo "1577"]
[BlackElo "1757"]
[Annotator "NA"]
[PlyCount "55"]
[EventDate "2024.09.05"]
[EventType "team-tourn"]
[EventCountry "HUN"]
[SourceTitle "playchess.com"]
[Source "ChessBase"]
[SourceQuality "1"]
[WhiteTeam "Qatar"]
[BlackTeam "Bahrain"]
[WhiteTeamCountry "QAT"]
[BlackTeamCountry "BHN"]
[TimeControl "40/5400+30:1800+30"]

1. e4 e5 2. Nf3 Nf6 3. Nxe5 d6 4. Nf3 Nxe4 5. Nc3 Nxc3 6. dxc3 Be7 7. Be3 O-O 8. Qd2 c6 9. O-O-O d5 10. h4 Nd7 11. h5 Nc5 12. Nd4 Qa5 13. Kb1 Ne4 14. Qe1 Re8 15. f3 Nd6 16. Qg3 Nf5 17. Nxf5 Bxf5 18. Bd4 Bf8 19. Bxg7 Bxg7 20. h6 Bg6 21. hxg7 Kxg7 22. Bd3 Re6 23. f4 Qc7 24. Qg5 f5 25. Bxf5 Rf6 26. Rxh7+ Kxh7 27. Qxf6 Qg7 28. Rh1+ 1-0

[Event "45th FIDE Olympiad 2024"]
[Site "Budapest"]
[Date "2024.09.13"]
[Round "3.45"]
[White "Albornoz Cabrera, Carlos Daniel"]
[Black "Shirov, Alexei"]
[Result "1-0"]
[ECO "C07"]
[WhiteElo "2579"]
[BlackElo "2666"]
[Annotator "TA"]
[PlyCount "69"]
[EventDate "2024.09.05"]
[EventType "team-tourn"]
[EventCountry "HUN"]
[SourceTitle "playchess.com"]
[Source "ChessBase"]
[SourceQuality "1"]
[WhiteTeam "Cuba"]
[BlackTeam "Spain"]
[WhiteTeamCountry "CUB"]
[BlackTeamCountry "ESP"]
[TimeControl "40/5400+30:1800+30"]

{[%evp 10,69,17,8,28,12,23,16,18,14,20,17,27,0,0,0,0,0,19,21,23,56,37,41,49,46,125,145,165,168,250,118,114,124,116,111,118,113,112,100,98,104,108,80,131,131,132,129,193,122,114,90,121,91,173,150,194,183,463,463,456,456]} 1. e4 {[%emt 0:00:03]} e6 {[%emt 0:00:19]} 2. d4 {[%emt 0:00:09]} d5 {[%emt 0:00:08]} 3. Nd2 {[%emt 0:00:06]} c5 {[%emt 0:00:04]} 4. Ngf3 {[%emt 0:00:04]} cxd4 {[%emt 0:00:33]} 5. exd5 {[%emt 0:00:04]} Qxd5 {[%emt 0:00:07]} 6. Bc4 {[%emt 0:00:03]} Qd7 {[%emt 0:00:08]} 7. O-O {[%emt 0:00:17]} Nc6 {[%emt 0:00:08]} 8. Nb3 {[%emt 0:00:17]} a6 {[%emt 0:00:13] The position is equal.} 9. Nbxd4 {[%emt 0:00:16]} (9. Nfxd4 {simplifies} Nxd4 10. Qxd4 Qxd4 11. Nxd4 Nf6 12. Bf4) 9... Nxd4 {[%emt 0:00:07]} 10. Nxd4 {[%emt 0:00:03]} (10. Qxd4 {simplifies} Qxd4 11. Nxd4 Nf6 12. Rd1) 10... Qc7 {[%emt 0:00:08] Dodges Bf4} 11. Qe2 {[%emt 0:07:34]} Bd6 {[%emt 0:04:20]} 12. Nf5 {[%emt 0:01:37]} Bxh2+ {[%emt 0:00:13]} 13. Kh1 {[%emt 0:00:03]} Qe5 {[%emt 0:05:36] [#]} 14. Nxg7+ $1 {[%emt 0:07:33]} Qxg7 {[%emt 0:01:11]} 15. Kxh2 {[%emt 0:00:04]} Ne7 {[%emt 0:09:52] Dodges Bd5} 16. Rd1 {[%emt 0:11:53]} Bd7 {[%emt 0:07:32]} 17. Rd3 $1 {[%emt 0:06:48]} Nf5 {[%emt 0:29:49] Repels Rg3} (17... Bc6 $14 18. Rg3 Qd4) 18. Bd5 $1 $16 {[%emt 0:06:13]} Nd4 {[%emt 0:12:31]} 19. Qe4 {[%emt 0:02:36]} f5 {[%emt 0:00:57] [#]} (19... Nc6 $142) 20. Qxd4 {[%emt 0:03:05]} (20. Qh4 $1 $18 Qg4 21. Qxg4 (21. Rxd4 Qxh4+ 22. Rxh4 exd5 $16) 21... fxg4 22. Bxb7) 20... Qxd4 {[%emt 0:00:09]} 21. Rxd4 {[%emt 0:00:02]} exd5 {[%emt 0:00:08]} 22. Rxd5 {[%emt 0:00:21]} Be6 {[%emt 0:00:24]} 23. Rd6 {[%emt 0:01:33]} Kf7 {[%emt 0:01:57]} 24. Bg5 {[%emt 0:03:18]} Rhg8 {[%emt 0:03:56]} 25. Re1 {[%emt 0:01:31]} Rae8 {[%emt 0:00:06]} 26. f4 {[%emt 0:02:46]} Bxa2 {[%emt 0:10:17]} (26... h6 $142 27. Bh4 (27. Bxh6 $2 Rh8 $19) 27... Bxa2) 27. Rd7+ {[%emt 0:09:48]} Kg6 {[%emt 0:00:08]} 28. Be7 {[%emt 0:00:24][%cal Ob2b3]} Rc8 {[%emt 0:07:12] [#]} (28... h6 $16 {was called for.}) 29. Re3 {[%emt 0:04:07]} (29. Rxb7 Rxc2 30. b3 h6 $14) (29. b3 $1 $18 {Threatens to win with Bd6.} Rg7 30. Rxb7) 29... h6 {[%emt 0:04:03]} (29... Rxc2 $2 30. Rg3+ (30. Rxb7 Rxg2+ 31. Kxg2 Bd5+ 32. Kf2 Bxb7 $11) 30... Kf7 31. Bh4+ (31. Rxb7 Bd5 $11) 31... Ke6 32. Rgd3 Rgxg2+ 33. Kh3 Rh2+ (33... Rxb2 34. Re7#) 34. Kg3 Rcg2+ (34... Rhg2+ $2 35. Kf3 $18) 35. Kf3 Rh3+ 36. Kxg2 $18) 30. Bb4 $36 {[%emt 0:07:31][%mdl 2048] Black must now prevent Bc3. White is really pushing.} (30. Rxb7 Rxc2 31. Rd7 Rg7 $11) 30... Rcd8 {[%emt 0:02:25]} (30... Rxc2 $2 {too greedy.} 31. b3 (31. Rxb7 Rxg2+ 32. Kxg2 Bd5+ 33. Kh2 Bxb7 $11) 31... Bxb3 32. Rxb3 $18) 31. Rde7 {[%emt 0:04:44][%cal Ob4c3] White has more active pieces.} Bd5 {[%emt 0:00:29]} (31... Rd4 $16 32. Rg3+ (32. Rxb7 Rxf4 33. Rb6+ Kh7 $16) 32... Kf6 33. Rxb7 Rxg3 34. Kxg3 Kg6 35. Rb6+ Kh7) 32. Bc3 $18 {[%emt 0:00:21]} Be4 {[%emt 0:00:32][%cal Od8e8]} 33. g4 {[%emt 0:05:39] aiming for Re6+.} Rde8 $2 {[%emt 0:00:32]} (33... b5 {might work better.} 34. Re6+ Kh7) 34. gxf5+ {[%emt 0:00:26]} Kxf5 {[%emt 0:00:07]} 35. R3xe4 {[%emt 0:00:06] Weighted Error Value: White=0.14 (very precise) /Black=0.33.  Mistake:       	White=2     	Black=6      Inaccurate:     	White=1     	Black=1      OK:         	White=8     	Black=9      Best:        	White=5     	Black=3      Strong:       	White=2     	---} 1-0

[Event "45th FIDE Olympiad 2024"]
[Site "Budapest"]
[Date "2024.09.13"]
[Round "3.45"]
[White "Misambo, .J. Kilasa"]
[Black "Mompel Ferruz, Xavier"]
[Result "1/2-1/2"]
[ECO "D50"]
[WhiteElo "1959"]
[BlackElo "2273"]
[Annotator "RC"]
[PlyCount "82"]
[EventDate "2024.09.05"]
[EventType "team-tourn"]
[EventCountry "HUN"]
[SourceTitle "playchess.com"]
[Source "ChessBase"]
[SourceQuality "1"]
[WhiteTeam "Tanzania"]
[BlackTeam "Equatorial Guinea"]
[WhiteTeamCountry "TAN"]
[TimeControl "40/5400+30:1800+30"]

1. d4 d5 2. c4 e6 3. Nc3 Nf6 4. Bg5 dxc4 5. e3 c5 6. dxc5 Nbd7 7. c6 bxc6 8. Bxc4 Qa5 9. Bxf6 Nxf6 10. Nge2 Be7 11. O-O O-O 12. Qc2 c5 13. Rad1 Bb7 14. Rd2 Bc6 15. Rfd1 Qc7 16. b3 Ng4 17. Ng3 h5 18. Nf1 Ne5 19. Be2 g6 20. h3 Qb7 21. f4 Nd7 22. e4 Nb6 23. Ne3 Rad8 24. Bb5 Rc8 25. Bxc6 Qxc6 26. Nc4 Nxc4 27. bxc4 f5 28. Rd7 Rc7 29. Rxc7 Qxc7 30. e5 g5 31. Nb5 Qc6 32. Nxa7 Qb7 33. Nb5 gxf4 34. Qe2 Qe4 35. Qxh5 Rf7 36. Nd6 Bxd6 37. Rxd6 Qe1+ 38. Kh2 Qg3+ 39. Kg1 Qe1+ 40. Kh2 Qg3+ 41. Kg1 Qe1+ 1/2-1/2

[Event "45th FIDE Olympiad 2024"]
[Site "Budapest"]
[Date "2024.09.13"]
[Round "3.46"]
[White "Anton Guijarro, David"]
[Black "Quesada Perez, Luis Ernesto"]
[Result "1-0"]
[ECO "C63"]
[WhiteElo "2665"]
[BlackElo "2578"]
[Annotator "TA"]
[PlyCount "61"]
[EventDate "2024.09.05"]
[EventType "team-tourn"]
[EventCountry "HUN"]
[SourceTitle "playchess.com"]
[Source "ChessBase"]
[SourceQuality "1"]
[WhiteTeam "Spain"]
[BlackTeam "Cuba"]
[WhiteTeamCountry "ESP"]
[BlackTeamCountry "CUB"]
[TimeControl "40/5400+30:1800+30"]

{[%evp 13,61,28,32,50,39,17,16,25,16,25,24,18,75,61,58,36,35,13,61,61,76,82,91,93,98,97,97,100,109,81,201,96,313,329,488,487,495,482,5257,5281,1540,778,788,693,752,758,728,712,717,709]} 1. e4 {[%emt 0:00:07]} e5 {[%emt 0:00:22]} 2. Nf3 {[%emt 0:00:11]} Nc6 {[%emt 0:00:06]} 3. Bb5 {[%emt 0:00:29]} f5 {[%emt 0:02:13]} 4. d3 {[%emt 0:03:01]} fxe4 {[%emt 0:00:19]} 5. dxe4 {[%emt 0:00:10]} Nf6 {[%emt 0:00:07]} 6. O-O {[%emt 0:02:16]} d6 {[%emt 0:01:23]} 7. Nc3 {[%emt 0:06:32]} Be7 {[%emt 0:01:46]} 8. Be3 {[%emt 0:06:48]} a6 {[%emt 0:10:51]} 9. Bc4 {[%emt 0:07:43] Strongly threatening Ng5.} Na5 {[%emt 0:00:38]} 10. Bd3 {[%emt 0:01:10] The position is equal.} O-O {[%emt 0:01:13]} 11. Nd5 {[%emt 0:03:27]} Nc6 {[%emt 0:12:08]} 12. h3 {[%emt 0:02:36]} Nxd5 {[%emt 0:11:33]} (12... Bd7 $11 {remains equal.}) 13. exd5 $16 {[%emt 0:00:15]} Nb8 {[%emt 0:00:05]} 14. a4 {[%emt 0:18:59]} a5 {[%emt 0:07:40]} 15. Ra3 {[%emt 0:09:08][%cal Of3e5,Ba1a3,Ba3c3,Bc3c7][%mdl 32] Black should prevent Nxe5!} Qe8 {[%emt 0:03:39]} (15... Nd7 $11 {deserves consideration.}) 16. Rc3 $1 $14 {[%emt 0:03:18]} Bd8 {[%emt 0:04:05][%cal Oe5e4]} 17. Ng5 {[%emt 0:02:47] White is more active.} Bxg5 {[%emt 0:03:06]} 18. Bxg5 {[%emt 0:00:07]} Na6 {[%emt 0:00:11]} 19. Bb5 {[%emt 0:04:36] This pair of bishops is nice.} Bd7 {[%emt 0:11:01]} 20. Bxa6 {[%emt 0:00:18]} Rxa6 {[%emt 0:00:02] Black is weak on the dark squares} 21. Rxc7 {[%emt 0:00:16]} Bf5 {[%emt 0:00:46] [#]} (21... Bxa4 $16 22. f4 (22. Rxb7 Qg6 $16) 22... Bd7) 22. Kh2 {[%emt 0:10:06]} (22. Rxb7 Qg6 $16) (22. f4 $1 $18 {[%cal Rf4e5] Black must now prevent fxe5.} e4 23. Qd4 (23. Rxb7 Qc8 $18)) 22... Qxa4 $2 {[%emt 0:08:17] [#] Loses the game.} (22... h6 $16 23. Bc1 (23. Be7 $2 Rf7 $19) 23... Rb6 (23... Qxa4 24. f4 $16)) 23. f4 $1 $18 {[%emt 0:02:15]} (23. Rxb7 Qc4 $16) 23... Raa8 {[%emt 0:07:32]} (23... Qe8 $142 24. c4 (24. Rxb7 h6 $18) 24... Rb6) 24. fxe5 {[%emt 0:01:36] White is clearly winning.} (24. Rxb7 h6 $18) 24... dxe5 {[%emt 0:00:02]} 25. d6 {[%emt 0:00:50] Qd5+ would kill now.} ({Weaker is} 25. Rxb7 Qxc2 26. Qxc2 Bxc2 27. Rxf8+ Kxf8 28. Be7+ Ke8 $18) 25... h6 {[%emt 0:05:23]} (25... Qd4 $142 26. d7 (26. Rxb7 Qxd1 27. Rxd1 h6 $18) 26... Bxd7 27. Rxd7 Rxf1 28. Rxd4 Rxd1 29. Rxd1 b5 30. Rd8+ Rxd8) 26. Qd5+ {[%emt 0:08:02]} Kh7 {[%emt 0:01:55]} 27. Qxe5 {[%emt 0:00:56][%csl Gc7][%cal Re5g7]} Bd7 {[%emt 0:00:53]} 28. b3 {[%emt 0:01:29]} Qb5 {[%emt 0:02:25]} 29. Qxb5 {[%emt 0:00:35]} Bxb5 {[%emt 0:00:05]} 30. Rxf8 {[%emt 0:00:05]} Rxf8 {[%emt 0:00:08]} 31. Be7 {[%emt 0:00:23] Weighted Error Value: White=0.13 (very precise) /Black=0.40.  Loses game:     	---       	Black=1      Mistake:       	White=1     	Black=5      OK:         	White=5     	Black=8      Best:        	White=3     	Black=1      Strong:       	White=2     	---} 1-0

[Event "45th FIDE Olympiad 2024"]
[Site "Budapest"]
[Date "2024.09.13"]
[Round "3.46"]
[White "Oscar, Naranjo Gonzalez"]
[Black "Hassuji, Nurdin"]
[Result "1-0"]
[ECO "C77"]
[WhiteElo "1861"]
[BlackElo "1847"]
[Annotator "NA RC"]
[PlyCount "51"]
[EventDate "2024.09.05"]
[EventType "team-tourn"]
[EventCountry "HUN"]
[SourceTitle "playchess.com"]
[Source "ChessBase"]
[SourceQuality "1"]
[WhiteTeam "Equatorial Guinea"]
[BlackTeam "Tanzania"]
[BlackTeamCountry "TAN"]
[TimeControl "40/5400+30:1800+30"]

1. e4 e5 2. Nf3 Nc6 3. Bb5 a6 4. Ba4 Nf6 5. Qe2 b5 6. Bb3 Be7 7. a4 Rb8 8. axb5 axb5 9. Nc3 b4 10. Nd5 O-O 11. O-O Nd4 12. Nxd4 exd4 13. d3 Bb7 14. Nxe7+ Qxe7 15. Bg5 d6 16. f4 Rfe8 17. h3 Bc8 18. Qf2 Qf8 19. Rae1 Be6 20. e5 dxe5 21. fxe5 Nd7 22. Ba4 c5 23. Qg3 Kh8 24. Rf4 Kg8 25. Rh4 Kh8 26. Bc6 1-0